Cogmind - Beta 10.2 @@@ ROGUE MODE // 2021.11.28 @ 15:39:25 Player: SURFACESEEKER Result: Destroyed by as-00023 with Assembled Rifle Performance ------------- Evolutions (1) 500 Regions Visited (4) 800 Robots Destroyed (50) 250 Value Destroyed (1314) 1314 Prototype IDs (23) 460 Alien Tech Used (0) 0 Bonus (319) 319 TOTAL SCORE: 3643 Bonus ------- High Alert Combat Kills 19 Aligned with FarCom 300 Cogmind --------- Core Integrity 0/400 Matter 266/300 Energy 100/100 System Corruption 5% Temperature Cool (0) Movement Core (600) Ox11 Location -9/Exiles Parts ------- > --- POWER (1) -------- (None) > --- PROPULSION (4) --- (None) > --- UTILITY (2) ------ Large Storage Unit Large Storage Unit > --- WEAPON (2) ------- Katana > --- INVENTORY (16) --- Light Ion Engine Improved Heat Sink Medium Matter Pod (100) Advanced Targeting Computer Recoil Stabilizer Transmission Jammer Shield Generator AWS/Autocannon Peak State ------------ > --- POWER ------------ Light Nuclear Core > --- PROPULSION ------- Aluminum Leg Aluminum Leg Aluminum Leg Aluminum Leg > --- UTILITY ---------- Large Storage Unit Large Storage Unit > --- WEAPON ----------- Beam Rifle Beam Cannon > --- INVENTORY -------- Aluminum Leg Aluminum Leg Aluminum Leg Aluminum Leg Aluminum Leg Improved Heat Sink Medium Matter Pod Advanced Targeting Computer Recoil Stabilizer Transmission Jammer Transmission Jammer Shield Generator Backup Laser I Assault Rifle Shotgun Katana [Rating: 15] Favorites ----------- Power Light Ion Engine Engine Light Ion Engine Power Core Light Nuclear Core Propulsion Aluminum Leg Treads Light Treads Leg Aluminum Leg Utility Large Storage Unit Storage Large Storage Unit Weapon Assault Rifle Energy Gun Beam Rifle Energy Cannon Beam Cannon Ballistic Gun Assault Rifle Impact Weapon Heavy Hammer Slashing Weapon Katana Build | -11 -10 -9 -9 -9 ------- Run | Scr Mat Mat Min Exi Slots Evolved 2 | . . 2 . . Power . | . . . . . Propulsion 2 | . . 2 . . Utility . | . . . . . Weapon . | . . . . . Parts Attached 40 | 4 11 18 1 6 Power 8 | 1 2 2 1 2 Engine 7 | 1 1 2 1 2 Core 1 | . 1 . . . Reactor . | . . . . . Propulsion 15 | 2 2 8 . 3 Treads 2 | 2 . . . . Leg 13 | . 2 8 . 3 Wheel . | . . . . . Hover . | . . . . . Flight . | . . . . . Utility 3 | 1 2 . . . Device . | . . . . . Storage 3 | 1 2 . . . Processor . | . . . . . Hackware . | . . . . . Protection . | . . . . . Artifact . | . . . . . Weapon 14 | . 5 8 . 1 Energy Gun 3 | . 2 1 . . Energy Cannon 3 | . 1 2 . . Ballistic Gun 6 | . 2 4 . . Ballistic Cannon . | . . . . . Launcher . | . . . . . Special Weapon . | . . . . . Impact Weapon 1 | . . 1 . . Slashing Weapon 1 | . . . . 1 Piercing Weapon . | . . . . . Special Melee Weapon . | . . . . . Unidentified Prototypes . | . . . . . Parts Lost 17 | . 1 4 . 12 Power 3 | . . . . 3 Propulsion 8 | . . 1 . 7 Utility . | . . . . . Weapon 6 | . 1 3 . 2 Highest Loss Streak 12 | . 1 2 . 12 Average Slot Usage (%) 97 | . 98 98 97 96 Engine 8 | . 9 6 8 10 Core 3 | . 4 5 . . Treads 9 | . 23 . . . Leg 27 | . 4 43 44 42 Storage 24 | . 27 22 22 22 Energy Gun 3 | . 2 5 . . Energy Cannon 3 | . . 9 . . Ballistic Gun 16 | . 23 6 22 20 Naked Turns . | . . . . . Heaviest Build 47 | 7 42 47 44 40 Greatest Support 40 | 40 40 40 40 40 Greatest Overweight (x) 2 | . 2 1 1 1 Average Overweight (x) . | . . . . . Largest Inventory Capacity 16 | 6 16 16 16 16 Average Capacity 14 | 5 14 16 16 16 Most Carried 16 | 4 14 16 15 16 Average Carried 12 | 2 9 15 13 15 Final Capacity 16 | 6 16 16 16 16 Final Carried 15 | 4 14 11 15 10 Class Distribution -------------------- 55% | Mutant 44% | Scavenger-Mutant Dominant Class ---------------- Mutant | -10/Materials Scavenger-Mutant | -9/Materials Scavenger-Mutant | -9/Mines Scavenger-Mutant | -9/Exiles Resources | -11 -10 -9 -9 -9 ----------- Run | Scr Mat Mat Min Exi Matter Collected 1030 | 186 365 434 45 . Remotely . | . . . . . Salvage Created 1747 | . 679 1023 45 . Parts 105 | . 39 59 7 . Haulers Intercepted . | . . . . . Recyclers Shooed 5 | . 2 3 . . Parts Field Recycled . | . . . . . Retrieved Matter . | . . . . . Parts Self-Destructed . | . . . . . Prevented . | . . . . . Kills | -11 -10 -9 -9 -9 ------- Run | Scr Mat Mat Min Exi Combat Hostiles Destroyed 38 | . 14 20 4 . Guns 28 | . 14 10 4 . Cannons 9 | . . 9 . . Classes Destroyed 9 | . 6 3 . . Worker 4 | . 1 3 . . Builder 1 | . 1 . . . Recycler 2 | . 1 1 . . Operator 1 | . . 1 . . Watcher 4 | . 2 2 . . Swarmer 9 | . 3 2 4 . Grunt 23 | . 11 12 . . Duelist 1 | . . 1 . . Sentry 5 | . . 5 . . Best Kill Streak 9 | . 5 9 4 . Combat Bots Only 6 | . 3 6 4 . Max Kills in Single Turn 2 | . 1 2 2 . Gunslinging 1 | . . 1 1 . Exploded . | . . . . . Melee . | . . . . . Uniques/NPCs Destroyed . | . . . . . Combat | -11 -10 -9 -9 -9 -------- Run | Scr Mat Mat Min Exi Damage Taken 3061 | . 769 1016 128 1148 Core 606 | . 192 137 10 267 Absorbed by Shields . | . . . . . Core Remaining (%) 61 | 100 23 . . . Volleys Fired 153 | . 80 66 5 2 Largest 2 | . 2 2 2 2 Hottest 116 | . 80 116 43 43 Shots Fired 299 | . 159 126 10 4 Gun 245 | . 151 80 10 4 Cannon 54 | . 8 46 . . Launcher . | . . . . . Special . | . . . . . Kinetic 175 | . 113 48 10 4 Thermal 111 | . 46 65 . . Explosive . | . . . . . Electromagnetic 13 | . . 13 . . Robot Hit Streak 15 | . 15 8 2 3 Robot Miss Streak 5 | . 5 4 4 1 Penetration Max . | . . . . . Secondary Targets 6 | . 3 2 1 . Max Gunslinging Chain 1 | . 1 1 1 . Shots Hit Robots 158 | . 68 82 4 4 Core Hits 80 | . 34 42 4 . Critical Hits 3 | . 3 . . . Critical Kills 1 | . 1 . . . Critical Parts Destroyed 2 | . 2 . . . Melee Attacks 4 | . . . . 4 Impact . | . . . . . Slashing 4 | . . . . 4 Piercing . | . . . . . Sneak Attacks . | . . . . . Combat Hostiles . | . . . . . Follow-up Attacks . | . . . . . Damage Inflicted 2352 | . 772 1379 104 97 Guns 1658 | . 748 784 104 22 Cannons 509 | . . 509 . . Explosions 49 | . . 49 . . Melee 75 | . . . . 75 Ramming 61 | . 24 37 . . Kinetic 1140 | . 564 450 104 22 Thermal 864 | . 184 680 . . Explosive . | . . . . . Electromagnetic 212 | . . 212 . . Impact . | . . . . . Slashing 75 | . . . . 75 Piercing . | . . . . . Highest Corruption 5 | . . . . 5 Average Corruption 5 | . . . . 5 Corruption Purged . | . . . . . Effects 2 | . . . . 2 Message Errors 1 | . . . . 1 Targeting Errors 1 | . . . . 1 Overload Shots . | . . . . . Overflow Damage 31 | . . 13 . 18 Projectiles 13 | . . 13 . . Explosions . | . . . . . Melee 18 | . . . . 18 Knockbacks . | . . . . . Impact . | . . . . . Kinetic . | . . . . . Secondary . | . . . . . Self-Inflicted Damage 137 | . 102 35 . . Shots 2 | . 1 1 . . Rammed 8 | . 5 3 . . Targets Rammed 14 | . 6 8 . . Kicked 6 | . 1 5 . . Crushed . | . . . . . Highest Temperature 430 | . 97 430 6 11 Average Temperature 76 | . 31 122 6 6 Received Heat Transfer 684 | . 279 345 . 60 Effects 3 | . . 3 . . Shutdowns 2 | . . 2 . . Energy Bleed 1 | . . 1 . . Siege Activations . | . . . . . Robots Corrupted 1 | . . 1 . . Combat Hostiles 1 | . . 1 . . Parts Fried 1 | . . 1 . . Impact Corruptions . | . . . . . Robots Melted . | . . . . . Combat Hostiles . | . . . . . Parts Melted 4 | . . 4 . . Heat Transferred 2103 | . 425 1678 . . Parts Sabotaged . | . . . . . Parts Stolen . | . . . . . Parts Stripped . | . . . . . Power Chain Reactions 1 | . . 1 . . Missiles Intercepted . | . . . . . Alert | -11 -10 -9 -9 -9 ------- Run | Scr Mat Mat Min Exi Peak Influence 426 | . 285 426 224 . Initial 134 | . . 72 134 . Average 149 | . 102 203 220 . Maximum Alert Level 2 | . 1 2 1 . Low Security (%) 65 | 100 84 55 3 . Level 1 34 | . 15 43 96 . Level 2 . | . . 1 . . Level 3 . | . . . . . Level 4 . | . . . . . Level 5 . | . . . . . High Security . | . . . . . Max Security . | . . . . . Squads Dispatched 5 | . 2 3 . . Investigation 1 | . . 1 . . Extermination . | . . . . . Reinforcement 4 | . 2 2 . . Assault . | . . . . . Garrison . | . . . . . Intercept . | . . . . . Construction Impeded . | . . . . . Haulers Reinforced . | . . . . . Stealth | -11 -10 -9 -9 -9 --------- Run | Scr Mat Mat Min Exi Distress Signals 3 | . 3 . . . Communications Jammed . | . . . . . Distress Signals . | . . . . . Times Spotted 74 | . 25 37 4 8 Peak Tracking Total 9 | . 4 7 4 9 Tactical Retreats 3 | . 3 . . . Traps | -11 -10 -9 -9 -9 ------- Run | Scr Mat Mat Min Exi Traps Triggered . | . . . . . Indirectly . | . . . . . Trap Hack Attempts . | . . . . . Triggered . | . . . . . Disarmed . | . . . . . Reprogrammed . | . . . . . Reused . | . . . . . Traps Extracted . | . . . . . Installed . | . . . . . Triggered 1 | . . . 1 . Machines | -11 -10 -9 -9 -9 ---------- Run | Scr Mat Mat Min Exi Machines Disabled 4 | . 3 . . 1 Max in Single Turn 2 | . 2 . . 1 Machines Sabotaged . | . . . . . Garrisons Compromised . | . . . . . Overloaded Fab Kills . | . . . . . Fab Network Shutdowns . | . . . . . Hacking | -11 -10 -9 -9 -9 --------- Run | Scr Mat Mat Min Exi Machines Accessed 11 | . 4 5 . 2 Terminals 7 | . 4 3 . . Fabricators . | . . . . . Repair Stations 1 | . . 1 . . Recycling Units . | . . . . . Scanalyzers 1 | . . 1 . . Garrison Access . | . . . . . Total Hacks 59 | . 15 34 . 10 Successful 46 | . 11 25 . 10 Failed 13 | . 4 9 . . Catastrophic 1 | . 1 . . . Database Lockouts . | . . . . . Manual 24 | . 14 9 . 1 Terminals 30 | . 15 15 . . Fabricators . | . . . . . Repair Stations 5 | . . 5 . . Recycling Units . | . . . . . Scanalyzers 14 | . . 14 . . Garrison Access . | . . . . . Terminal Hacks 16 | . 1 5 . 10 Record 9 | . . . . 9 Alert Level 2 | . . 2 . . Locate Traps 1 | . 1 . . . Dispatch Records 1 | . . 1 . . Investigation Status 1 | . . 1 . . Recall Investigation 1 | . . 1 . . EX-Prototype ID Bank 1 | . . . . 1 Fabricator Hacks . | . . . . . Repair Station Hacks 4 | . . 4 . . Scan Component 2 | . . 2 . . Repair 1 | . . 1 . . Refit 1 | . . 1 . . Recycling Unit Hacks . | . . . . . Scanalyzer 12 | . . 12 . . Insert Component 5 | . . 5 . . Analyze 7 | . . 7 . . Garrison Access Hacks . | . . . . . Unauthorized Hacks 14 | . 10 4 . . Terminals 14 | . 10 4 . . Track 5 | . 4 1 . . Assimilate 3 | . 2 1 . . Botnet 6 | . 4 2 . . Fabricators . | . . . . . Repair Stations . | . . . . . Recycling Units . | . . . . . Scanalyzers . | . . . . . Garrison Access . | . . . . . Data Cores Recovered . | . . . . . Used . | . . . . . Hacking Detections 8 | . 3 5 . . Full Trace Events 3 | . 1 2 . . Feedback Events . | . . . . . Feedback Blocked . | . . . . . Robot Schematics Acquired . | . . . . . Robots Built . | . . . . . Matter . | . . . . . Time . | . . . . . Total Robot Build Rating . | . . . . . Part Schematics Acquired 5 | . . 5 . . Parts Built . | . . . . . Matter . | . . . . . Time . | . . . . . Total Part Build Rating . | . . . . . Parts Repaired 1 | . . 1 . . Time 26 | . . 26 . . Parts Recycled . | . . . . . Recycled Matter . | . . . . . Retrieved Matter . | . . . . . Retrieved Components . | . . . . . Parts Scanalyzed 5 | . . 5 . . Part Schematics Acquired 5 | . . 5 . . Parts Damaged . | . . . . . Bothacking | -11 -10 -9 -9 -9 ------------ Run | Scr Mat Mat Min Exi Used RIF Installer . | . . . . . Robots Hacked . | . . . . . Non-combat . | . . . . . Combat . | . . . . . Robot Hacks Applied . | . . . . . Relay Couplers Released . | . . . . . Robots Rewired . | . . . . . Allies Hacked . | . . . . . Hacks Repelled . | . . . . . Allies | -11 -10 -9 -9 -9 -------- Run | Scr Mat Mat Min Exi Total Allies . | . . . . . Largest Group . | . . . . . Highest-Rated Group . | . . . . . Highest-Rated Ally . | . . . . . Total Orders . | . . . . . Ally Attacks . | . . . . . Total Damage . | . . . . . Kills . | . . . . . Allies Corrupted . | . . . . . Allies Melted . | . . . . . Intel | -11 -10 -9 -9 -9 ------- Run | Scr Mat Mat Min Exi Robot Analysis Total . | . . . . . Derelict Logs Recovered . | . . . . . Drone Launches . | . . . . . Drone Recoveries . | . . . . . Exploration | -11 -10 -9 -9 -9 ------------- Run | Scr Mat Mat Min Exi Turns Passed 3001 | 108 1204 992 257 440 Spaces Moved 1619 | 71 560 452 192 344 Core 15 | 15 . . . . Treads 548 | 56 492 . . . Legs 1056 | . 68 452 192 344 Wheels . | . . . . . Hover . | . . . . . Flight . | . . . . . Fastest Speed 50 | 50 150 120 120 120 Average Speed 140 | 136 160 142 120 120 Slowest Speed 180 | 160 180 150 150 150 Overloaded Moves . | . . . . . Propulsion Burnouts . | . . . . . Robots Hopped . | . . . . . Cave-ins Triggered . | . . . . . Exploration Rate (%) 36 | 5 64 37 31 44 Regions Visited 4 Branch Regions 2 Pre-discovered Areas . | . . . . . Known Exits Taken . | . . . . . Unknown Exits Taken 4 | 1 1 1 1 . Scrap Searched . | . . . . . Spaces Dug . | . . . . . Terrain Destroyed 23 | . 19 4 . . Melee . | . . . . . Projectile . | . . . . . AOE 23 | . 19 4 . . Terrain Rammed . | . . . . . Walls Destroyed . | . . . . . Machines Disabled . | . . . . . Actions | -11 -10 -9 -9 -9 --------- Run | Scr Mat Mat Min Exi Total 2044 | 82 715 678 208 361 Wait 141 | . 41 93 5 2 Move 1615 | 70 559 451 191 344 Hop . | . . . . . Pick Up 51 | 8 16 21 5 1 Fast Attach 2 | . . 2 . . Attach 24 | 4 6 7 1 6 Detach . | . . . . . Swap 14 | . 5 9 . . Drop 26 | . 2 21 1 2 Fire 153 | . 80 66 5 2 Melee 4 | . . . . 4 Ram . | . . . . . Kick 10 | . 2 8 . . Crush 4 | . 4 . . . Escape Stasis . | . . . . . Rewire . | . . . . . Trap . | . . . . . Miscellaneous . | . . . . . Route ------- -11/Scrapyard -10/Materials (discovered 2 exits: *Mat / [*Min]) -9/Materials (discovered 2 exits: [*Min x2]) -9/Mines -9/Exiles (discovered 1 exit: [*Min]) History --------- Turn | Location | Event 6 | -11/Scrapyard | Discovered new exit (range 16) 109 | -11/Scrapyard | Entered Materials 303 | -10/Materials | Discovered new exit (range 13) 306 | -10/Materials | Build established: Mutant 973 | -10/Materials | Discovered new exit (range 16) 1287 | -10/Materials | Core integrity fell below 50% 1313 | -10/Materials | Entered another Materials area 1313 | -9/Materials | Evolved 2 slots: Propulsion x2 1433 | -9/Materials | Repaired Assault Rifle 1613 | -9/Materials | Build established: Scavenger-Mutant 2019 | -9/Materials | Discovered new exit (range 7) 2256 | -9/Materials | Discovered new exit (range 7) 2305 | -9/Materials | Entered Mines 2324 | -9/Mines | Met a Derelict bent on vengeance 2554 | -9/Mines | Deemed a non-threat by the Exiles lab entrance 2555 | -9/Mines | Discovered new exit (range 5) 2562 | -9/Mines | Entered Exiles 2595 | -9/Exiles | Discovered new exit (range 14) 2626 | -9/Exiles | Met 8R-AWN 2652 | -9/Exiles | Met EX-HEX 2717 | -9/Exiles | Met EX-BIN 2742 | -9/Exiles | Aligned with FarCom system 2744 | -9/Exiles | Given EX-Vault access code 2789 | -9/Exiles | Opened EX-Vault 2802 | -9/Exiles | Found AWS/Autocannon 2831 | -9/Exiles | Warned to stay clear of 0b10 Research branches 2966 | -9/Exiles | Attacked by the Exiles 2973 | -9/Exiles | Core integrity fell below 50% 2995 | -9/Exiles | Core integrity fell below 20% 3002 | -9/Exiles | Destroyed by as-00023 with Assembled Rifle Last Messages --------------- 02985_ HV Slug penetrates Wall. 02985_ HV Slug penetrates as-37509. 02985_ Penetrated by HV Slug. 02987_ HV Slug penetrates Machine. 02987_ HV Slug penetrates Wall. 02987_ HV Slug penetrates Machine. 02988_ Destroyed Asb. Hover Unit. 02989_ Aluminum Leg destroyed. 02989_ Penetrated by HV Slug. 02994_ UCWND9|YPUECDY2QFRDFL 02994_ Lgt. Ion Engine destroyed. 02994_ System corrupted: Katana targeting data glitched. 02994_ Destroyed Asb. Hover Unit. 02996_ Aluminum Leg destroyed. 02999_ Lgt. Ion Engine destroyed. 03001_ HV Slug penetrates Machine. 03001_ HV Slug penetrates as-36674. 03001_ as-36674 suffers critical hit. 03001_ as-36674 destroyed. 03001_ Penetrated by HV Slug. Map ----- +----------------------------------------------------+ | ?????????????##" ###########??????????????????? | | ????????????##"" #????????????????????????????? | | ????????#?###"" #????????????????????????????? | | ????????""""""" ##???????????????????????????? | | ???????""" " "" ##???###########????????????? | | ?????" """ " #####"""""""""##???????????? | | ???? " " " """ """"##??????????? | | ??? "" " #??????????? | | ??? " """#??????????? | | ??? " "#??????????? | | ??? " "##?????????# | | ??? ""###???????# | | ??? """""" """#??????## | | ???? ######""" "#????### | | ????? ""#?????#####""" ##???# | | ????? """???????????##""" ##?## | | ?????????????????????#"""" ### | | ????????????????????##"" g | | ?????????????????####"""" | | ????????????a??###""" "" | | ?????????? """" #"""# | | ?????????? % ###### | | ?????????? a % ##????? | | ?????????? a a ##?????? | | ??????????? " "" a " ""#??????? | | ????????????""## ##""" @ " # "##??????? | | ???????????????#???#####"" """##"""""""##???????? | | ???????????????????????###""""###########????????? | | ?????????????????????????######??????????????????? | | ?????????????????????????????????????????????????? | | ?????????????????????????????????????????????????? | | ?????????????????????????????????????????????????? | | ?????????????????????????????????????????????????? | | ?????????????????????????????????????????????????? | | ?????????????????????????????????????????????????? | | ?????????????????????????????????????????????????? | | ?????????????????????????????????????????????????? | | ?????????????????????????????????????????????????? | | ?????????????????????????????????????????????????? | | ?????????????????????????????????????????????????? | | ?????????????????????????????????????????????????? | | ?????????????????????????????????????????????????? | | ?????????????????????????????????????????????????? | | ?????????????????????????????????????????????????? | | ?????????????????????????????????????????????????? | | ?????????????????????????????????????????????????? | | ?????????????????????????????????????????????????? | | ?????????????????????????????????????????????????? | | ?????????????????????????????????????????????????? | | ?????????????????????????????????????????????????? | +----------------------------------------------------+ Best States ------------- Heat Dissipation 28 Energy Generation 14 Energy Capacity 265 Matter Stores 300 Matter Capacity 300 Sight Range 16 Terrain Scan Density 10 Evasion (%) 50 Recoil Reduction 2 Item Schematics ----------------- Katana | -9/Materials | Scanalyzed Aluminum Leg | -9/Materials | Scanalyzed Shield Generator | -9/Materials | Scanalyzed Transmission Jammer | -9/Materials | Scanalyzed Adv. Targeting Computer | -9/Materials | Scanalyzed Robot Schematics ------------------ None Fabricated ------------ Nothing Alien Tech Used ----------------- None Achievements -------------- None Challenges ------------ None Game ------ Seed SmartbombMinesnifferGuard Manual? 0 Play Time 00:31:02 Cumulative 91.5 hours Start 2021.11.28 @ 15:07:00 End 2021.11.28 @ 15:39:25 Sessions 1 Manual Loads 0 Difficulty Rogue Special Mode None Game No. 76 Rogue 76 Adventurer 0 Explorer 0 Win Type - Total 0 Types 0/0/0/0/0/0/0/0/0 Lore% 29 Gallery% 47 Achievement% 28 Wizard Run 0 Options --------- ASCII 0 Keyboard 0 Movement Arrows Keybinds 0 Fullscreen 1 Font 14/Terminus Map View 72x54 Tactical HUD 1 Map Filters NONE Filters NONE Steam 1 RUN: 5df594cf-90f2-4fc4-8464-1bf2415de777